fUSD/lending_fUSD_20251206
["ID","MTS","AMOUNT","RATE_DAILY","PERIOD"]
[396579418,1765057849096,-500.0,0.00016712,2]
[396579419,1765057849105,-500.0,0.00016712,2]
[396579420,1765057849116,-500.0,0.00016712,2]
[396579421,1765057849126,-500.0,0.00016712,2]
[396579422,1765057849136,-500.0,0.00016712,2]
[396579423,1765057849146,-500.0,0.00016712,2]
[396579424,1765057849155,-500.0,0.00016712,2]
[396579425,1765057849165,-500.0,0.00016712,2]
[396579426,1765057849175,-500.0,0.00016712,2]
[396579427,1765057849186,-500.0,0.00016712,2]
[396579428,1765057849198,-500.0,0.00016712,2]
[396579429,1765057849207,-500.0,0.00016712,2]
[396579430,1765057849217,-500.0,0.00016712,2]
[396579431,1765057849226,-500.0,0.00016712,2]
[396579432,1765057849235,-775.29,0.00016712,2]
[396579433,1765057849244,-1663.53,0.00016712,2]
[396579434,1765057849254,-500.0,0.00016712,2]
[396579435,1765057849263,-2207.81,0.00016712,2]
[396579436,1765057849272,-500.0,0.00016712,2]
[396579437,1765057849282,-500.0,0.00016712,2]
[396579438,1765057849291,-500.0,0.00016712,2]
[396579439,1765057849302,-500.0,0.00016712,2]
[396579440,1765057849312,-500.0,0.00016712,2]
[396579441,1765057849322,-500.0,0.00016712,2]
[396579442,1765057849336,-713.55,0.00016712,2]
[396579443,1765057849345,-500.0,0.00016712,2]
[396579444,1765057849355,-500.0,0.00016712,2]
[396579445,1765057849363,-500.0,0.00016712,2]
[396579446,1765057849374,-500.0,0.00016712,2]
[396579447,1765057849383,-500.0,0.00016712,2]
[396579448,1765057849393,-1215.93,0.00016712,2]
[396579449,1765057849403,-500.0,0.00016712,2]
[396579450,1765057849414,-500.0,0.00016712,2]
[396579451,1765057849423,-500.0,0.00016712,2]
[396579452,1765057849432,-556.03099801,0.00016712,2]
[396579453,1765057849442,-502.95301589,0.00016712,2]
[396579454,1765057849452,-2188.0,0.00016712,2]
[396579455,1765057849461,-500.0,0.00016712,2]
[396579456,1765057849470,-500.0,0.00016712,2]
[396579457,1765057849480,-500.0,0.00016712,2]
[396579458,1765057849490,-500.0,0.00016712,2]
[396579459,1765057849499,-556.27,0.00016712,2]
[396579460,1765057849508,-500.0,0.00016712,2]
[396579461,1765057849517,-500.0,0.00016712,2]
[396579462,1765057849526,-500.0,0.00016712,2]
[396579463,1765057849535,-2037.94,0.00016712,2]
[396579464,1765057849544,-500.0,0.00016712,2]
[396579465,1765057849553,-500.0,0.00016712,2]
[396579466,1765057849562,-500.0,0.00016712,2]
[396579467,1765057849572,-500.0,0.00016712,2]
[396579468,1765057849581,-433.64249485,0.00016712,2]
[396579469,1765057849591,-500.0,0.00016712,2]
[396579470,1765057849600,-500.0,0.00016712,2]
[396579471,1765057849609,-2096.79,0.00016712,2]
[396579472,1765057849618,-500.0,0.00016712,2]
[396579473,1765057849628,-2343.16,0.00016712,2]
[396579474,1765057849637,-500.0,0.00016712,2]
[396579475,1765057849646,-500.0,0.00016712,2]
[396579476,1765057849656,-500.0,0.00016712,2]
[396579477,1765057849666,-500.0,0.00016712,2]
[396579478,1765057849675,-1853.99,0.00016712,2]
[396579479,1765057849685,-587.2,0.00016712,2]
[396579480,1765057849694,-500.0,0.00016712,2]
[396579481,1765057849703,-500.0,0.00016712,2]
[396579482,1765057849712,-511.31933018,0.00016712,2]
[396579483,1765057849721,-500.0,0.00016712,2]
[396579484,1765057849731,-500.0,0.00016712,2]
[396579485,1765057849740,-925.74,0.00016712,2]
[396579486,1765057849749,-500.0,0.00016712,2]
[396579487,1765057849759,-1822.42,0.00016712,2]
[396579488,1765057849768,-1644.91,0.00016712,2]
[396579489,1765057849778,-500.0,0.00016712,2]
[396579490,1765057849786,-500.0,0.00016712,2]
[396579491,1765057849795,-500.0,0.00016712,2]
[396579492,1765057849804,-500.0,0.00016712,2]
[396579493,1765057849814,-500.0,0.00016712,2]
[396579494,1765057849823,-915.79,0.00016712,2]
[396579495,1765057849832,-500.0,0.00016712,2]
[396579496,1765057849841,-500.0,0.00016712,2]
[396579497,1765057849850,-500.0,0.00016712,2]
[396579498,1765057849859,-500.0,0.00016712,2]
[396579499,1765057849868,-500.0,0.00016712,2]
[396579500,1765057849877,-2090.4,0.00016712,2]
[396579501,1765057849886,-500.0,0.00016712,2]
[396579502,1765057849895,-3146.29,0.00016712,2]
[396579503,1765057849904,-500.0,0.00016712,2]
[396579504,1765057849913,-500.0,0.00016712,2]
[396579505,1765057849922,-500.0,0.00016712,2]
[396579506,1765057849931,-500.0,0.00016712,2]
[396579507,1765057849939,-500.0,0.00016712,2]
[396579508,1765057849948,-500.0,0.00016712,2]
[396579509,1765057849957,-500.0,0.00016712,2]
[396579510,1765057849966,-500.0,0.00016712,2]
[396579511,1765057849974,-633.89,0.00016712,2]
[396579512,1765057849983,-500.0,0.00016712,2]
[396579513,1765057849992,-500.0,0.00016712,2]
[396579514,1765057850001,-500.0,0.00016712,2]
[396579515,1765057850010,-500.0,0.00016712,2]
[396579516,1765057850019,-500.0,0.00016712,2]
[396579517,1765057850028,-500.0,0.00016712,2]
[396579518,1765057850037,-2126.16,0.00016712,2]
[396579519,1765057850046,-504.07321226,0.00016712,2]
[396579520,1765057850055,-500.0,0.00016712,2]
[396579521,1765057850063,-500.0,0.00016712,2]
[396579522,1765057850072,-500.0,0.00016712,2]
[396579523,1765057850081,-500.0,0.00016712,2]
[396579524,1765057850090,-500.0,0.00016712,2]
[396579525,1765057850098,-837.83,0.00016712,2]
[396579526,1765057850107,-2072.03,0.00016712,2]
[396579527,1765057850116,-500.0,0.00016712,2]
[396579528,1765057850124,-500.0,0.00016712,2]
[396579529,1765057850133,-500.0,0.00016712,2]
[396579530,1765057850142,-888.54,0.00016712,2]
[396579531,1765057850151,-500.0,0.00016712,2]
[396579532,1765057850160,-500.0,0.00016712,2]
[396579533,1765057850169,-500.0,0.00016712,2]
[396579534,1765057850177,-500.0,0.00016712,2]
[396579535,1765057850186,-500.0,0.00016712,2]
[396579536,1765057850195,-500.0,0.00016712,2]
[396579537,1765057850204,-800.36,0.00016712,2]
[396579538,1765057850213,-562.59,0.00016712,2]
[396579539,1765057850222,-500.0,0.00016712,2]
[396579540,1765057850231,-500.0,0.00016712,2]
[396579541,1765057850240,-688.27,0.00016712,2]
[396579542,1765057850249,-500.0,0.00016712,2]
[396579543,1765057850258,-500.0,0.00016712,2]
[396579544,1765057850268,-500.0,0.00016712,2]
[396579545,1765057850277,-500.0,0.00016712,2]
[396579546,1765057850286,-500.0,0.00016712,2]
[396579547,1765057850295,-500.0,0.00016712,2]
[396579548,1765057850305,-500.0,0.00016712,2]
[396579549,1765057850314,-579.14,0.00016712,2]
[396579550,1765057850325,-500.0,0.00016712,2]
[396579551,1765057850335,-622.37755707,0.00016712,2]
[396579552,1765057850344,-2385.5,0.00016712,2]
[396579553,1765057850354,-505.03086043,0.00016712,2]
[396579554,1765057850364,-300.0,0.00016712,2]
[396579555,1765057850373,-500.0,0.00016712,2]
[396579556,1765057850383,-2777.75,0.00016712,2]
[396579557,1765057850392,-500.0,0.00016712,2]
[396579558,1765057850402,-500.0,0.00016712,2]
[396579559,1765057850412,-500.0,0.00016712,2]
[396579560,1765057850421,-539.14111582,0.00016712,2]
[396579561,1765057850431,-500.0,0.00016712,2]
[396579562,1765057850441,-500.0,0.00016712,2]
[396579563,1765057850450,-500.0,0.00016712,2]
[396579564,1765057850460,-500.0,0.00016712,2]
[396579565,1765057850470,-500.0,0.00016712,2]
[396579566,1765057850479,-2315.52,0.00016712,2]
[396579567,1765057850489,-2578.63,0.00016712,2]
[396579568,1765057850499,-525.72,0.00016712,2]
[396579569,1765057850508,-558.51,0.00016712,2]
[396579570,1765057850518,-500.0,0.00016712,2]
[396579571,1765057850528,-501.26,0.00016712,2]
[396579572,1765057850538,-2197.86,0.00016712,2]
[396579573,1765057850547,-278.00854149,0.00016712,2]
[396579574,1765057850557,-4746.19,0.00016712,2]
[396579575,1765057850567,-500.0,0.00016712,2]
[396579576,1765057850576,-500.0,0.00016712,2]
[396579577,1765057850586,-500.0,0.00016712,2]
[396579578,1765057850596,-500.0,0.00016712,2]
[396579579,1765057850606,-626.2,0.00016712,2]
[396579580,1765057850616,-500.0,0.00016712,2]
[396579581,1765057850626,-2191.64,0.00016712,2]
[396579582,1765057850636,-2005.76,0.00016712,2]
[396579583,1765057850646,-500.0,0.00016712,2]
[396579584,1765057850656,-500.0,0.00016712,2]
[396579585,1765057850666,-574.32,0.00016712,2]
[396579586,1765057850676,-500.0,0.00016712,2]
[396579587,1765057850686,-550.15070118,0.00016712,2]
[396579588,1765057850696,-500.0,0.00016712,2]
[396579589,1765057850706,-573.0,0.00016712,2]
[396579590,1765057850716,-500.0,0.00016712,2]
[396579591,1765057850725,-500.0,0.00016712,2]
[396579592,1765057850735,-500.0,0.00016712,2]
[396579593,1765057850746,-500.0,0.00016712,2]
[396579594,1765057850755,-500.0,0.00016712,2]
[396579595,1765057850766,-500.0,0.00016712,2]
[396579596,1765057850775,-500.0,0.00016712,2]
[396579597,1765057850785,-500.0,0.00016712,2]
[396579598,1765057850795,-500.0,0.00016712,2]
[396579599,1765057850805,-500.0,0.00016712,2]
[396579600,1765057850815,-500.0,0.00016712,2]
[396579601,1765057850824,-500.0,0.00016712,2]
[396579602,1765057850834,-500.0,0.00016712,2]
[396579603,1765057850844,-500.0,0.00016712,2]
[396579604,1765057850854,-500.0,0.00016712,2]
[396579605,1765057850864,-2158.84,0.00016712,2]
[396579606,1765057850874,-500.0,0.00016712,2]
[396579607,1765057850883,-500.0,0.00016712,2]
[396579608,1765057850894,-503.44584738,0.00016712,2]
[396579609,1765057850904,-500.0,0.00016712,2]
[396579610,1765057850914,-500.0,0.00016712,2]
[396579611,1765057850923,-500.0,0.00016712,2]
[396579612,1765057850933,-500.0,0.00016712,2]
[396579613,1765057850944,-2149.97,0.00016712,2]
[396579614,1765057850954,-500.0,0.00016712,2]
[396579615,1765057850965,-1877.15,0.00016712,2]
[396579616,1765057850975,-502.63380749,0.00016712,2]
[396579617,1765057850985,-502.27831511,0.00016712,2]
[396579618,1765057850995,-535.71,0.00016712,2]
[396579619,1765057851005,-553.37,0.00016712,2]
[396579620,1765057851015,-226.36671537,0.00016712,2]
[396579621,1765057851025,-500.0,0.00016712,2]
[396579622,1765057851035,-276.83110656,0.00016712,2]
[396579623,1765057851047,-633.9,0.00016712,2]
[396579624,1765057851056,-500.0,0.00016712,2]
[396579625,1765057851067,-500.0,0.00016712,2]
[396579626,1765057851076,-628.14803593,0.00016712,2]
[396579627,1765057851086,-998.38,0.00016712,2]
[396579628,1765057851096,-500.0,0.00016712,2]
[396579629,1765057851106,-496.09231865,0.00016712,2]
[396579630,1765057851115,-500.0,0.00016712,2]
[396579631,1765057851126,-634.8,0.00016712,2]
[396579632,1765057851135,-500.0,0.00016712,2]
[396579633,1765057851145,-500.0,0.00016712,2]
[396579634,1765057851155,-547.56213074,0.00016712,2]
[396579635,1765057851165,-500.0,0.00016712,2]
[396579636,1765057851175,-2425.57,0.00016712,2]
[396579637,1765057851185,-500.0,0.00016712,2]
[396579638,1765057851195,-500.0,0.00016712,2]
[396579639,1765057851205,-500.0,0.00016712,2]
[396579640,1765057851215,-958.47,0.00016712,2]
[396579641,1765057851225,-1876.76,0.00016712,2]
[396579642,1765057851234,-500.0,0.00016712,2]
[396579643,1765057851244,-500.0,0.00016712,2]
[396579644,1765057851254,-502.72705575,0.00016712,2]
[396579645,1765057851264,-500.0,0.00016712,2]
[396579646,1765057851274,-500.0,0.00016712,2]
[396579647,1765057851284,-500.0,0.00016712,2]
[396579648,1765057851293,-500.0,0.00016712,2]
[396579649,1765057851304,-500.0,0.00016712,2]
[396579650,1765057851313,-500.0,0.00016712,2]
[396579651,1765057851323,-500.0,0.00016712,2]
[396579652,1765057851339,-500.0,0.00016712,2]
[396579653,1765057851349,-500.0,0.00016712,2]
[396579654,1765057851359,-500.0,0.00016712,2]
[396579655,1765057851370,-500.0,0.00016712,2]
[396579656,1765057851380,-500.0,0.00016712,2]
[396579657,1765057851390,-603.08,0.00016712,2]
[396579658,1765057851400,-500.0,0.00016712,2]
[396579659,1765057851410,-2376.37,0.00016712,2]
[396579660,1765057851420,-500.0,0.00016712,2]
[396579661,1765057851430,-159.6,0.00016712,2]
[396579662,1765057851440,-500.0,0.00016712,2]
[396579663,1765057851449,-281.43883916,0.00016712,2]
[396579664,1765057851459,-2363.74,0.00016712,2]
[396579665,1765057851468,-500.0,0.00016712,2]
[396579666,1765057851479,-500.0,0.00016712,2]
[396579667,1765057851489,-500.0,0.00016712,2]
[396579668,1765057851499,-197.67671682,0.00016712,2]
[396579669,1765057851510,-500.0,0.00016712,2]
[396579670,1765057851520,-2373.0,0.00016712,2]
[396579671,1765057851530,-500.0,0.00016712,2]
[396579672,1765057851540,-500.0,0.00016712,2]
[396579673,1765057851550,-545.97633085,0.00016712,2]
[396579674,1765057851559,-500.0,0.00016712,2]
[396579675,1765057851569,-500.0,0.00016712,2]
[396579676,1765057851581,-649.50593586,0.00016712,2]
[396579677,1765057851590,-1217.76,0.00016712,2]
[396579678,1765057851601,-500.0,0.00016712,2]
[396579679,1765057851611,-2095.97,0.00016712,2]
[396579680,1765057851620,-1083.65,0.00016712,2]
[396579681,1765057851630,-500.0,0.00016712,2]
[396579682,1765057851640,-151.0,0.00016712,2]
[396579683,1765057851650,-500.0,0.00016712,2]
[396579684,1765057851660,-1525.03,0.00016712,2]
[396579685,1765057851670,-500.0,0.00016712,2]
[396579686,1765057851680,-500.0,0.00016712,2]
[396579687,1765057851690,-500.0,0.00016712,2]
[396579688,1765057851699,-500.0,0.00016712,2]
[396579689,1765057851710,-500.0,0.00016712,2]
[396579690,1765057851720,-151.0,0.00016712,2]
[396579691,1765057851731,-151.0,0.00016712,2]
[396579692,1765057851741,-500.0,0.00016712,2]
[396579693,1765057851751,-500.0,0.00016712,2]
[396579694,1765057851761,-500.0,0.00016712,2]
[396579695,1765057851770,-500.0,0.00016712,2]
[396579696,1765057851781,-500.0,0.00016712,2]
[396579697,1765057851791,-330.793777,0.00016712,2]
[396579698,1765057851801,-500.0,0.00016712,2]
[396579699,1765057851812,-500.0,0.00016712,2]
[396579700,1765057851822,-330.793777,0.00016712,2]
[396579701,1765057851833,-500.0,0.00016712,2]
[396579702,1765057851844,-500.0,0.00016712,2]
[396579703,1765057851854,-500.0,0.00016712,2]
[396579704,1765057851864,-358.26990661,0.00016712,2]
[396579705,1765057851873,-330.793777,0.00016712,2]
[396579706,1765057851884,-186.616004,0.00016712,2]
[396579707,1765057851894,-240.572356,0.00016712,2]
[396579708,1765057851904,-2421.59,0.00016712,2]
[396579709,1765057851915,-330.793777,0.00016712,2]
[396579710,1765057851925,-240.572356,0.00016712,2]
[396579711,1765057851937,-500.0,0.00016712,2]
[396579712,1765057851948,-240.572356,0.00016712,2]
[396579713,1765057851958,-1914.89,0.00016712,2]
[396579714,1765057851968,-240.572356,0.00016712,2]
[396579715,1765057851979,-500.0,0.00016712,2]
[396579716,1765057851990,-500.0,0.00016712,2]
[396579717,1765057852000,-500.0,0.00016712,2]
[396579718,1765057852011,-2301.61,0.00016712,2]
[396579719,1765057852022,-500.0,0.00016712,2]
[396579720,1765057852033,-387.2505835,0.00016712,2]
[396579721,1765057852044,-500.0,0.00016712,2]
[396579722,1765057852055,-2081.6,0.00016712,2]
[396579723,1765057852065,-500.0,0.00016712,2]
[396579724,1765057852076,-2339.06,0.00016712,2]
[396579725,1765057852087,-500.0,0.00016712,2]
[396579726,1765057852098,-484.86137506,0.00016712,2]
[396579727,1765057852108,-555.42,0.00016712,2]
[396579728,1765057852118,-500.0,0.00016712,2]
[396579729,1765057852127,-500.0,0.00016712,2]
[396579730,1765057852137,-500.0,0.00016712,2]
[396579731,1765057852148,-1356.0,0.00016712,2]
[396579732,1765057852159,-500.0,0.00016712,2]
[396579733,1765057852171,-4508.39,0.00016712,2]
[396579734,1765057852180,-500.0,0.00016712,2]
[396579735,1765057852191,-500.0,0.00016712,2]
[396579736,1765057852202,-500.0,0.00016712,2]
[396579737,1765057852213,-500.0,0.00016712,2]
[396579738,1765057852225,-1916.86,0.00016712,2]
[396579739,1765057852235,-500.0,0.00016712,2]
[396579740,1765057852245,-525.66,0.00016712,2]
[396579741,1765057852256,-181.31849654,0.00016712,2]
[396579742,1765057852265,-500.0,0.00016712,2]
[396579743,1765057852276,-500.0,0.00016712,2]
[396579744,1765057852287,-2221.95,0.00016712,2]
[396579745,1765057852299,-500.0,0.00016712,2]
[396579746,1765057852310,-1172.65,0.00016712,2]
[396579747,1765057852320,-778.92,0.00016712,2]
[396579748,1765057852337,-285.77082357,0.00016712,2]
[396579749,1765057852348,-500.0,0.00016712,2]
[396579750,1765057852359,-1408.21,0.00016712,2]
[396579751,1765057852370,-500.0,0.00016712,2]
[396579752,1765057852381,-504.83,0.00016712,2]
[396579753,1765057852392,-2428.95,0.00016712,2]
[396579754,1765057852402,-500.0,0.00016712,2]
[396579755,1765057852412,-500.0,0.00016712,2]
[396579756,1765057852422,-1881.71,0.00016712,2]
[396579757,1765057852432,-500.0,0.00016712,2]
[396579758,1765057852444,-500.0,0.00016712,2]
[396579759,1765057852456,-500.0,0.00016712,2]
[396579760,1765057852465,-829.78,0.00016712,2]
[396579761,1765057852477,-500.0,0.00016712,2]
[396579762,1765057852488,-557.50237603,0.00016712,2]
[396579763,1765057852498,-7072.36,0.00016712,2]
[396579764,1765057852509,-500.0,0.00016712,2]
[396579765,1765057852519,-2007.83,0.00016712,2]
[396579766,1765057852529,-151.0,0.00016712,2]
[396579767,1765057852541,-500.0,0.00016712,2]
[396579768,1765057852552,-2294.1,0.00016712,2]
[396579769,1765057852562,-500.0,0.00016712,2]
[396579770,1765057852572,-500.0,0.00016712,2]
[396579771,1765057852584,-500.0,0.00016712,2]
[396579772,1765057852596,-157.502877,0.00016712,2]
[396579773,1765057852606,-2553.25,0.00016712,2]
[396579774,1765057852617,-500.0,0.00016712,2]
[396579775,1765057852628,-285.18737421,0.00016712,2]
[396579776,1765057852640,-500.0,0.00016712,2]
[396579777,1765057852650,-151.0,0.00016712,2]
[396579778,1765057852660,-500.0,0.00016712,2]
[396579779,1765057852672,-151.0,0.00016712,2]
[396579780,1765057852683,-151.0,0.00016712,2]
[396579781,1765057852966,-151.0,0.00016712,2]
[396579782,1765057852988,-500.0,0.00016712,2]
[396579783,1765057852998,-500.0,0.00016712,2]
[396579784,1765057853008,-500.0,0.00016712,2]
[396579785,1765057853019,-151.0,0.00016712,2]
[396579786,1765057853032,-151.0,0.00016712,2]
[396579787,1765057853042,-500.0,0.00016712,2]
[396579788,1765057853052,-151.0,0.00016712,2]
[396579789,1765057853062,-502.66482999,0.00016712,2]
[396579790,1765057853072,-1909.75,0.00016712,2]
[396579791,1765057853083,-505.98218405,0.00016712,2]
[396579792,1765057853093,-500.0,0.00016712,2]
[396579793,1765057853103,-500.0,0.00016712,2]
[396579794,1765057853112,-500.0,0.00016712,2]
[396579795,1765057853122,-500.0,0.00016712,2]
[396579796,1765057853139,-500.0,0.00016712,2]
[396579797,1765057853153,-619.14209758,0.00016712,2]
[396579798,1765057853162,-2054.72,0.00016712,2]
[396579799,1765057853173,-500.0,0.00016712,2]
[396579800,1765057853182,-500.0,0.00016712,2]
[396579801,1765057853192,-679.71,0.00016712,2]
[396579802,1765057853202,-151.0,0.00016712,2]
[396579803,1765057853212,-500.0,0.00016712,2]
[396579804,1765057853221,-500.0,0.00016712,2]
[396579805,1765057853231,-541.1,0.00016712,2]
[396579806,1765057853240,-500.0,0.00016712,2]
[396579807,1765057853250,-500.0,0.00016712,2]
[396579808,1765057853259,-2589.16,0.00016712,2]
[396579809,1765057853268,-2168.96,0.00016712,2]
[396579810,1765057853278,-500.0,0.00016712,2]
[396579811,1765057853287,-500.0,0.00016712,2]
[396579812,1765057853297,-500.0,0.00016712,2]
[396579813,1765057853307,-500.0,0.00016712,2]
[396579814,1765057853316,-491.95245396,0.00016712,2]
[396579815,1765057853330,-524.4,0.00016712,2]
[396579816,1765057853340,-500.0,0.00016712,2]
[396579817,1765057853350,-500.0,0.00016712,2]
[396579818,1765057853359,-1394.9,0.00016712,2]
[396579819,1765057853370,-1544.37,0.00016712,2]
[396579820,1765057853379,-946.55,0.00016712,2]
[396579821,1765057853388,-500.0,0.00016712,2]
[396579822,1765057853398,-500.0,0.00016712,2]
[396579823,1765057853409,-1000.0,0.00016712,2]
[396579824,1765057853418,-506.9,0.00016712,2]
[396579825,1765057853428,-500.0,0.00016712,2]
[396579826,1765057853438,-500.0,0.00016712,2]
[396579827,1765057853448,-500.0,0.00016712,2]
[396579828,1765057853457,-500.0,0.00016712,2]
[396579829,1765057853467,-2539.91,0.00016712,2]
[396579830,1765057853476,-500.0,0.00016712,2]
[396579831,1765057853486,-500.0,0.00016712,2]
[396579832,1765057853495,-3269.83,0.00016712,2]
[396579833,1765057853505,-500.0,0.00016712,2]
[396579834,1765057853515,-314.72802331,0.00016712,2]
[396579835,1765057853524,-500.0,0.00016712,2]
[396579836,1765057853534,-2087.78,0.00016712,2]
[396579837,1765057853544,-500.0,0.00016712,2]
[396579838,1765057853554,-500.0,0.00016712,2]
[396579839,1765057853563,-2381.44,0.00016712,2]
[396579840,1765057853573,-517.39550906,0.00016712,2]
[396579841,1765057853583,-500.0,0.00016712,2]
[396579842,1765057853592,-500.0,0.00016712,2]
[396579843,1765057853602,-500.0,0.00016712,2]
[396579844,1765057853611,-661.68,0.00016712,2]
[396579845,1765057853621,-500.0,0.00016712,2]
[396579846,1765057853630,-500.0,0.00016712,2]
[396579847,1765057853640,-500.0,0.00016712,2]
[396579848,1765057853650,-2344.42,0.00016712,2]
[396579849,1765057853661,-500.0,0.00016712,2]
[396579850,1765057853673,-500.0,0.00016712,2]
[396579851,1765057853683,-500.0,0.00016712,2]
[396579852,1765057853693,-1073.26,0.00016712,2]
[396579853,1765057853703,-552.53,0.00016712,2]
[396579854,1765057853713,-514.91,0.00016712,2]
[396579855,1765057853723,-2084.02,0.00016712,2]
[396579856,1765057853732,-1945.99,0.00016712,2]
[396579857,1765057853742,-500.0,0.00016712,2]
[396579858,1765057853752,-2214.05,0.00016712,2]
[396579859,1765057853762,-151.0,0.00016712,2]
[396579860,1765057853772,-500.0,0.00016712,2]
[396579861,1765057853782,-151.0,0.00016712,2]
[396579862,1765057853792,-7019.52,0.00016712,2]
[396579863,1765057853803,-741.07,0.00016712,2]
[396579864,1765057853813,-500.0,0.00016712,2]
[396579865,1765057853822,-500.0,0.00016712,2]
[396579866,1765057853832,-500.0,0.00016712,2]
[396579867,1765057853841,-500.0,0.00016712,2]
[396579868,1765057853851,-500.0,0.00016712,2]
[396579869,1765057853861,-500.99846131,0.00016712,2]
[396579870,1765057853870,-500.0,0.00016712,2]
[396579871,1765057853880,-500.0,0.00016712,2]
[396579872,1765057853889,-428.899887,0.00016712,2]
[396579873,1765057853899,-500.0,0.00016712,2]
[396579874,1765057853909,-428.899887,0.00016712,2]
[396579875,1765057853919,-151.0,0.00016712,2]
[396579876,1765057853928,-500.0,0.00016712,2]
[396579877,1765057853938,-151.0,0.00016712,2]
[396579878,1765057853947,-655.16,0.00016712,2]
[396579879,1765057853957,-500.0,0.00016712,2]
[396579880,1765057853966,-500.0,0.00016712,2]
[396579881,1765057853976,-500.0,0.00016712,2]
[396579882,1765057853986,-1206.11,0.00016712,2]
[396579883,1765057853996,-428.899887,0.00016712,2]
[396579884,1765057854005,-519.65,0.00016712,2]
[396579885,1765057854015,-538.07,0.00016712,2]
[396579886,1765057854025,-151.0,0.00016712,2]
[396579887,1765057854035,-500.0,0.00016712,2]
[396579888,1765057854045,-428.899887,0.00016712,2]
[396579889,1765057854054,-151.0,0.00016712,2]
[396579890,1765057854064,-500.0,0.00016712,2]
[396579891,1765057854073,-151.0,0.00016712,2]
[396579892,1765057854083,-500.0,0.00016712,2]
[396579893,1765057854092,-500.0,0.00016712,2]
[396579894,1765057854102,-151.0,0.00016712,2]
[396579895,1765057854112,-1595.3,0.00016712,2]
[396579896,1765057854121,-151.0,0.00016712,2]
[396579897,1765057854131,-500.0,0.00016712,2]
[396579898,1765057854140,-172.725488,0.00016712,2]
[396579899,1765057854150,-500.0,0.00016712,2]
[396579900,1765057854159,-500.0,0.00016712,2]
[396579901,1765057854169,-563.57,0.00016712,2]
[396579902,1765057854179,-1190.57,0.00016712,2]
[396579903,1765057854188,-715.96,0.00016712,2]
[396579904,1765057854198,-634.94975894,0.00016712,2]
[396579905,1765057854207,-1696.69,0.00016712,2]
[396579906,1765057854217,-573.06,0.00016712,2]
[396579907,1765057854226,-2735.73,0.00016712,2]
[396579908,1765057854236,-2242.51,0.00016712,2]
[396579909,1765057854246,-151.0,0.00016712,2]
[396579910,1765057854255,-502.99925531,0.00016712,2]
[396579911,1765057854264,-552.55,0.00016712,2]
[396579912,1765057854275,-151.0,0.00016712,2]
[396579913,1765057854285,-500.0,0.00016712,2]
[396579914,1765057854295,-500.0,0.00016712,2]
[396579915,1765057854304,-500.0,0.00016712,2]
[396579916,1765057854314,-507.29,0.00016712,2]
[396579917,1765057854324,-500.0,0.00016712,2]